Cogmind - Beta 14 @@@ ROGUE MODE // 2024.11.09 @ 10:57:32 Player: Fangrelle Result: Destroyed by G-47 Trooper with Particle Gun Performance ------------- Evolutions (0) 0 Regions Visited (2) 400 Robots Destroyed (34) 170 Value Destroyed (735) 735 Prototype IDs (2) 40 Alien Tech Used (0) 0 Bonus (75) 75 TOTAL SCORE: 1420 Bonus ------- Follower Combat Kills 75 Cogmind --------- Core Integrity 0/250 Matter 300/300 Energy 125/125 System Corruption 0% Temperature Cool (9) Movement Treading (480) Ox4 Location -10/Mines Parts ------- > --- POWER (1) -------- Light Ion Engine > --- PROPULSION (2) --- Light Treads > --- UTILITY (2) ------ Huge Storage Unit Hacking Suite > --- WEAPON (2) ------- Light Assault Rifle Grenade Launcher > --- INVENTORY (25) --- Light Treads Light Treads Wheel Large Battery (200) Large Battery (200) Large Battery (200) Sensor Array Terrain Scanner Transport Network Coupler Propulsion Shielding Propulsion Shielding Light Armor Plating Tractor Beam Tractor Beam Light Assault Rifle Grenade Launcher Datajack Mining Laser Shock Trap Shock Trap Shock Trap Shock Trap Peak State ------------ > --- POWER ------------ Ion Engine > --- PROPULSION ------- Light Treads Light Treads > --- UTILITY ---------- Large Storage Unit Hacking Suite > --- WEAPON ----------- EM Pulse Gun Medium Laser > --- INVENTORY -------- Ion Engine Wheel Large Battery Sensor Array Light Armor Plating Tractor Beam Grenade Launcher Grenade Launcher Datajack Mining Laser [Rating: 10] Favorites ----------- Power Ion Engine Engine Ion Engine Propulsion Light Treads Treads Light Treads Wheel Wheel Utility Hacking Suite Device Tractor Beam Storage Huge Storage Unit Hackware Hacking Suite Weapon Light Assault Rifle Energy Gun Medium Laser Ballistic Gun Light Assault Rifle Launcher Grenade Launcher Special Weapon Mining Laser Special Melee Weapon Datajack Build | -11 -10 -10 ------- Run | Yrd Mat Min Slots Evolved . | . . . Power . | . . . Propulsion . | . . . Utility . | . . . Weapon . | . . . Parts Attached 32 | 6 22 4 Power 6 | 1 2 3 Engine 6 | 1 2 3 Core . | . . . Reactor . | . . . Propulsion 6 | 2 4 . Treads 5 | 2 3 . Leg . | . . . Wheel 1 | . 1 . Hover . | . . . Flight . | . . . Utility 5 | 1 4 . Device 1 | . 1 . Storage 3 | 1 2 . Processor . | . . . Hackware 1 | . 1 . Protection . | . . . Artifact . | . . . Weapon 15 | 2 12 1 Energy Gun 7 | 2 5 . Energy Cannon . | . . . Ballistic Gun 3 | . 3 . Ballistic Cannon . | . . . Launcher 2 | . 1 1 Special Weapon 2 | . 2 . Impact Weapon . | . . . Slashing Weapon . | . . . Piercing Weapon . | . . . Special Melee Weapon 1 | . 1 . Unidentified Prototypes . | . . . Parts Lost 8 | . 4 4 Power 3 | . 1 2 Propulsion 1 | . . 1 Utility . | . . . Weapon 4 | . 3 1 Highest Loss Streak 3 | . 3 3 To Critical Strikes . | . . . Average Slot Usage (%) 97 | . 99 92 Engine 13 | . 13 13 Treads 25 | . 27 21 Storage 14 | . 14 14 Hackware 13 | . 13 14 Energy Gun 14 | . 21 . Ballistic Gun 9 | . 4 21 Launcher 2 | . . 6 Peak Build Rating 10 | 6 10 10 Average Rating 9 | 5 9 9 On Entrance 5 | . 6 10 Naked Turns . | . . . Heaviest Build 88 | 13 88 88 Greatest Support 40 | 40 40 40 Greatest Overweight (x) 8 | 1 8 4 Average Overweight (x) 1 | . . 2 Largest Inventory Capacity 25 | 8 25 25 Average Capacity 18 | 7 15 25 Most Carried 22 | 6 19 22 Average Carried 12 | 3 10 18 Final Capacity 25 | 8 25 25 Final Carried 22 | 6 19 22 Class Distribution -------------------- 74% | Mutant 25% | Scavenger-Mutant Dominant Class ---------------- Mutant | -10/Materials Scavenger-Mutant | -10/Mines Resources | -11 -10 -10 ----------- Run | Yrd Mat Min Matter Collected 630 | 204 277 149 Remotely 10 | . 10 . Salvage Created 1076 | . 803 273 Parts 61 | . 53 8 Haulers Intercepted 2 | . 2 . Recyclers Shooed 1 | . 1 . Parts Field Recycled . | . . . Retrieved Matter . | . . . Parts Self-Destructed . | . . . Prevented . | . . . Kills | -11 -10 -10 ------- Run | Yrd Mat Min Combat Hostiles Destroyed 23 | . 19 4 Guns 20 | . 18 2 AOE 3 | . 1 2 Classes Destroyed 8 | . 7 1 Worker 1 | . 1 . Hauler 2 | . 2 . Recycler 2 | . 1 1 Mechanic 1 | . . 1 Operator 2 | . 2 . Watcher 3 | . 3 . Swarmer 9 | . 9 . Grunt 14 | . 10 4 Best Kill Streak 5 | . 5 4 Combat Bots Only 3 | . 3 2 Max Kills in Single Turn 2 | . 2 2 Gunslinging . | . . . Exploded 1 | . 1 1 Melee . | . . . Uniques/NPCs Destroyed . | . . . Combat | -11 -10 -10 -------- Run | Yrd Mat Min Hostile Shots Fired 162 | . 102 60 Missed 57 | . 39 18 Damage Taken 1297 | . 694 603 Core 255 | . 125 130 Absorbed by Shields . | . . . Core Remaining (%) 100 | 100 . . Volleys Fired 112 | . 85 27 Largest 2 | . 2 2 Hottest 150 | . 150 50 Shots Fired 207 | . 153 54 Gun 196 | . 145 51 Cannon . | . . . Launcher 3 | . . 3 Special 8 | . 8 . Kinetic 67 | . 16 51 Thermal 108 | . 108 . Explosive 3 | . . 3 Electromagnetic 29 | . 29 . Robot Hit Streak 11 | . 11 7 Robot Miss Streak 7 | . 4 7 Penetration Max . | . . . Secondary Targets . | . . . Shots Hit Robots 126 | . 92 34 Core Hits 57 | . 41 16 Critical Kills . | . . . Critical Parts Destroyed 1 | . . 1 Critical Strikes 3 | . 2 1 Burn 2 | . 2 . Destroy 1 | . . 1 Melee Attacks . | . . . Impact . | . . . Slashing . | . . . Piercing . | . . . Sneak Attacks . | . . . Combat Hostiles . | . . . Follow-up Attacks . | . . . Damage Inflicted 1836 | . 1270 566 Guns 1434 | . 1107 327 Cannons . | . . . Explosions 350 | . 111 239 Melee . | . . . Ramming . | . . . Kinetic 440 | . 113 327 Thermal 827 | . 827 . Explosive 239 | . . 239 Electromagnetic 330 | . 330 . Impact . | . . . Slashing . | . . . Piercing . | . . . Highest Corruption . | . . . Average Corruption . | . . . Corruption Purged . | . . . Corruption Blocked . | . . . Overload Shots . | . . . Overflow Damage 38 | . 38 . Projectiles . | . . . Explosions 38 | . 38 . Melee . | . . . Knockbacks . | . . . Impact . | . . . Kinetic . | . . . Secondary . | . . . Self-Inflicted Damage 60 | . 60 . Shots 2 | . 2 . Rammed . | . . . Targets Rammed . | . . . Kicked . | . . . Crushed . | . . . Highest Temperature 210 | . 210 33 Average Temperature 63 | . 69 15 Received Heat Transfer 621 | . 258 363 Siege Activations . | . . . Robots Corrupted . | . . . Combat Hostiles . | . . . Parts Fried . | . . . Impact Corruptions . | . . . Robots Melted . | . . . Combat Hostiles . | . . . Parts Melted 3 | . 3 . Heat Transferred 2133 | . 2133 . Parts Sabotaged . | . . . Parts Stolen . | . . . Parts Stripped . | . . . Power Chain Reactions 2 | . 2 . Alert | -11 -10 -10 ------- Run | Yrd Mat Min Peak Influence 312 | . 312 156 Initial 114 | . . 114 Average 102 | . 127 57 Maximum Alert Level 1 | . 1 . Low Security (%) 80 | 100 70 100 Level 1 19 | . 29 . Level 2 . | . . . Level 3 . | . . . Level 4 . | . . . Level 5 . | . . . High Security . | . . . Max Security . | . . . Squads Dispatched 6 | . 5 1 Investigation 4 | . 4 . Extermination . | . . . Reinforcement 1 | . 1 . Assault 1 | . . 1 Garrison . | . . . Intercept . | . . . Searches Triggered . | . . . Construction Impeded . | . . . Haulers Reinforced . | . . . Active Scanning Responses . | . . . Cargo Convoy Interrupts . | . . . Stealth | -11 -10 -10 --------- Run | Yrd Mat Min Distress Signals 2 | . 2 . Communications Jammed . | . . . Distress Signals . | . . . Times Spotted 41 | . 29 12 Peak Tracking Total 5 | . 5 3 Tactical Retreats 2 | . 1 1 Traps | -11 -10 -10 ------- Run | Yrd Mat Min Traps Triggered 4 | . 4 . Indirectly . | . . . Trap Hack Attempts 2 | . 2 . Triggered . | . . . Disarmed . | . . . Reprogrammed 1 | . 1 . Reused 1 | . 1 . Traps Extracted . | . . . Installed . | . . . Triggered 1 | . 1 . Most Traps Carried 4 | . . 4 Machines | -11 -10 -10 ---------- Run | Yrd Mat Min Machines Disabled 2 | . 2 . Max in Single Turn 1 | . 1 . Machines Repaired . | . . . Machines Dismantled . | . . . Machines Sabotaged . | . . . Overloaded Fab Kills . | . . . Hacking | -11 -10 -10 --------- Run | Yrd Mat Min Machines Accessed 10 | . 10 . Terminals 8 | . 8 . Fabricators . | . . . Repair Stations . | . . . Recycling Units 2 | . 2 . Scanalyzers . | . . . Garrison Access . | . . . Total Hacks 40 | . 40 . Successful 23 | . 23 . Failed 16 | . 16 . Catastrophic 1 | . 1 . Database Lockouts 1 | . 1 . Manual 36 | . 36 . Terminals 36 | . 36 . Fabricators . | . . . Repair Stations . | . . . Recycling Units 4 | . 4 . Scanalyzers . | . . . Garrison Access . | . . . Terminal Hacks 6 | . 6 . Robot Analysis 1 | . 1 . Prototype ID Bank 1 | . 1 . Terminal Index 1 | . 1 . Alert Level 1 | . 1 . Zone Layout 2 | . 2 . Fabricator Hacks . | . . . Repair Station Hacks . | . . . Recycling Unit Hacks 2 | . 2 . Report Inventory 1 | . 1 . Retrieve Matter 1 | . 1 . Scanalyzer . | . . . Garrison Access Hacks . | . . . Unauthorized Hacks 15 | . 15 . Terminals 13 | . 13 . Track 2 | . 2 . Assimilate 2 | . 2 . Botnet 7 | . 7 . Disrupt 1 | . 1 . Operators 1 | . 1 . Fabricators . | . . . Repair Stations . | . . . Recycling Units 2 | . 2 . Tunnel 2 | . 2 . Scanalyzers . | . . . Garrison Access . | . . . Data Cores Recovered 1 | . 1 . Used . | . . . Hacking Detections 7 | . 7 . Full Trace Events . | . . . Feedback Events . | . . . Feedback Blocked . | . . . Robot Schematics Acquired . | . . . Robots Built . | . . . Authchips . | . . . Time . | . . . Total Robot Build Rating . | . . . Part Schematics Acquired . | . . . Parts Built . | . . . Authchips . | . . . Time . | . . . Total Part Build Rating . | . . . Parts Repaired . | . . . Time . | . . . Parts Recycled . | . . . Recycled Matter . | . . . Retrieved Matter . | . . . Retrieved Components . | . . . Parts Scanalyzed . | . . . Part Schematics Acquired . | . . . Parts Damaged . | . . . Bothacking | -11 -10 -10 ------------ Run | Yrd Mat Min Used RIF Installer . | . . . Robots Hacked . | . . . Non-combat . | . . . Combat . | . . . Robot Hacks Applied . | . . . Relay Couplers Released . | . . . Fabnet Peak Effective % . | . . . Robots Rewired . | . . . Allies Hacked . | . . . Hacks Repelled . | . . . Allies | -11 -10 -10 -------- Run | Yrd Mat Min Total Allies 2 | . 1 1 Largest Group 2 | . 1 2 Highest-Rated Group 41 | . 10 41 Highest-Rated Ally 31 | . 10 31 Total Orders 3 | . 2 1 STAY 2 | . 1 1 FOLLOW 1 | . 1 . Ally Attacks 18 | . . 18 Total Damage 272 | . . 272 Kills 3 | . . 3 Allies Corrupted . | . . . Allies Melted . | . . . Intel | -11 -10 -10 ------- Run | Yrd Mat Min Robot Analysis Total 1 | . 1 . Derelict Logs Recovered 1 | . . 1 Drone Launches . | . . . Drone Recoveries . | . . . Exploration | -11 -10 -10 ------------- Run | Yrd Mat Min Turns Passed 5045 | 116 3318 1611 Spaces Moved 1613 | 67 1155 391 Core 6 | 6 . . Treads 1578 | 61 1126 391 Legs . | . . . Wheels 29 | . 29 . Hover . | . . . Flight . | . . . Fastest Speed 50 | 50 160 320 Average Speed 230 | 153 183 384 Slowest Speed 480 | 160 320 480 Overloaded Moves . | . . . Propulsion Burnouts . | . . . Robots Hopped . | . . . Cave-ins Triggered . | . . . Exploration Rate (%) 57 | 6 90 76 Regions Visited 2 Branch Regions 1 Pre-discovered Areas 3 | . 2 1 Known Exits Taken . | . . . Unknown Exits Taken 2 | 1 1 . Scrap Searched 1 | . . 1 Spaces Dug 3 | . 3 . Terrain Destroyed 30 | . 9 21 Melee . | . . . Projectile 5 | . 5 . AOE 25 | . 4 21 Terrain Rammed . | . . . Walls Destroyed . | . . . Machines Disabled . | . . . Actions | -11 -10 -10 --------- Run | Yrd Mat Min Total 2716 | 78 2188 450 Wait 923 | . 900 23 Move 1611 | 66 1154 391 Hop . | . . . Pick Up 28 | 6 17 5 Fast Attach 13 | 6 7 . Attach 5 | . 2 3 Detach . | . . . Swap 14 | . 13 1 Drop 8 | . 8 . Fire 112 | . 85 27 Melee . | . . . Ram . | . . . Kick . | . . . Crush . | . . . Escape Stasis . | . . . Rewire . | . . . Trap 2 | . 2 . Miscellaneous . | . . . Route ------- -11/Scrapyard -10/Materials (discovered 5 exits: [*Mat x3] / [*Min x2]) -10/Mines (discovered 1 exit: [*Mat]) History --------- Turn | Location | Event 9 | -11/Scrapyard | Discovered new exit (range 15) 117 | -11/Scrapyard | Entered Materials 117 | -10/Materials | Discovered new exit (range 16) 307 | -10/Materials | Build established: Mutant 691 | -10/Materials | Central database locked down 1025 | -10/Materials | Discovered new exit (range 7) 1102 | -10/Materials | Discovered new exit (range 16) 2495 | -10/Materials | Discovered new exit (range 13) 2934 | -10/Materials | Lost 3 parts (1p2w) 3022 | -10/Materials | Discovered new exit (range 15) 3244 | -10/Materials | Build established: Scavenger-Mutant 3435 | -10/Materials | Entered Mines 3435 | -10/Mines | Accompanied by 1 ally 3595 | -10/Mines | Learned location of Zion (-7) 3743 | -10/Mines | Met a Derelict testing a Signal Generator 4070 | -10/Mines | Core integrity fell below 50% 4254 | -10/Mines | Core integrity fell below 20% 4290 | -10/Mines | Lost 3 parts (1p1n1w) 4545 | -10/Mines | Build established: Mutant 4807 | -10/Mines | Discovered new exit (range 15) 4821 | -10/Mines | Found a hidden stash of uninstalled traps 5046 | -10/Mines | Destroyed by G-47 Trooper with Particle Gun Last Messages --------------- 04308_ U-05 Engineer builds a Wall. 04309_ U-05 Engineer lays Concrete. 04310_ K-01 Serf collects debris. 04311_ U-05 Engineer lays Concrete. 04321_ R-06 Scavenger collects Sml. Laser. 04322_ U-05 Engineer lays Concrete. 04324_ R-06 Scavenger collects Carbon-fiber Leg. 04326_ Acquired 78 matter. 04328_ U-05 Engineer builds a Wall. 04341_ R-06 Scavenger collects Aluminum Leg. 04715_ Searching scrap... 04715_ Found Flight Unit. 04715_ Found Terrain Scanner. 04715_ Found Aluminum Leg. 04715_ Found 60 Matter. 04716_ Acquired 8 matter. 04772_ Acquired Terrain Scanner. 04807_ EXIT=FOUND 04821_ A stash of uninstalled traps is collected here! 04831_ Acquired Shock Trap. Map ----- +----------------------------------------------------+ | ""#??????????????????????????????????????????????? | | #??????????????????????????????????????????????? | | #??????????????????????????????????????????????? | | #??????????????????????????????????????????????? | | #??????????????????????????????????????????????? | | #??????????????????????????????????????????????? | | #???????????????###????????????????????????????? | | #??????????????## ##???????????????????????????? | | #??????????????# ####????????????????????????? | | ###??????????????# ##???????????????????????? | | ##??????????????## #???????????????????????? | | #???????????#### #???????????????????????? | | #?????????### #???????????????????????? | | #????????## ##???????????????????????? | | #????????# ####????????????????????????? | | #???????# ##???????????????????????????? | | ####???# ####????????????????????????????? | | #### #???????????????????????????????? | | ##??????????????????????????????? | | #??????????????????????????????? | | #??????????????????????????????? | | ##??????????????????????????????? | | ## #???????????????????????????????? | | ##### # #??######???????????????????????? | | ##### ## #### ######### ???????????? | | ## ## @ < g""??????????? | | ###?# ### ##### ## ########???????????????? | | ##### #?## ##??# ### #??????????????????????? | | # #??# #??# #?## ##??????????????????????? | | # ### #??# #??# #??#####???????????????????????? | | # #?# #?## ##??# #??????????????????????????????? | | # #?# ### ##???# ########???????????????????????? | | #?# #????# =%= #???????????????????????? | | ##### ## #????######## #???????????????????????? | | ?# # ### ##?????????????????????????????????????? | | ?# ## # ###??????????????????????????????????????? | | ## # ## #???????????????????????????????????????? | | # #% % ###??????????????????????????????????????? | | # * #??????????##??????????????????????????? | | ##???????## ##?????????????????????????? | | ##??????# #?????????????????????????? | | ##????## #?????????????????????????? | | ### ###### #??????????????????????????? | | ##?## ## #???????????????????????????? | | ##???## ##??????????????????????????? | | ##????# ##?????????????????????????? | | ###??## #?????????????????????????? | | ##??###### #?????????????????????????? | | #???????## #?????????????????????????? | | #????????## ! #?????????????????????????? | +----------------------------------------------------+ Best States ------------- Heat Dissipation 25 Energy Generation 10 Energy Capacity 250 Matter Stores 300 Matter Capacity 300 Sight Range 16 Terrain Scan Density 10 Evasion (%) 40 Recoil Reduction 2 Offensive Hacking 10 Item Schematics ----------------- None Robot Schematics ------------------ None Fabricated ------------ Nothing Alien Tech Used ----------------- None Achievements -------------- None Challenges ------------ None Game ------ Seed ReactionWarlordCleaver Manual? 0 Play Time 00:20:24 Cumulative 30.0 hours Start 2024.11.09 @ 10:39:39 End 2024.11.09 @ 10:57:32 Sessions 1 Manual Loads 0 Difficulty Rogue Special Mode None Game No. 63 Rogue 63 Adventurer 0 Explorer 0 Win Type - Total 0 Types 0/0/0/0/0/0/0/0/0 Lore% 29 Gallery% 26 Achievement% 28 Wizard Run 0 Options --------- Layout 0 ASCII 0 Keyboard 0 Movement Mouse Keybinds 0 Fullscreen 1 Font 24/Smallcaps Map View 91x25 Zoom Use 78% Tactical HUD 1 Map Filters NONE Filters NONE Steam 1 RUN: 7bb03718-ce91-4b4d-85c0-3a140b5b94eb